bitfinex-derivatives/quotes_BTCF0:USTF0_20250913
["timestamp","ask_amount","ask_price","bid_price","bid_amount"]
[1757731301577,0.60500545,115960.0,115950.0,1.55919876]
[1757731302578,0.60500545,115960.0,115950.0,1.45612]
[1757731302774,0.61364154,115960.0,115950.0,1.45612]
[1757731303274,0.61364154,115960.0,115950.0,1.55919876]
[1757731305075,0.61364154,115960.0,115950.0,1.45612]
[1757731305380,0.61364154,115960.0,115950.0,1.55919876]
[1757731306479,0.61364154,115960.0,115950.0,1.51919876]
[1757731306677,0.61364154,115960.0,115950.0,1.55919876]
[1757731307178,0.60500545,115960.0,115950.0,1.55919876]
[1757731307679,0.60500545,115960.0,115950.0,1.45612]
[1757731307883,0.60500545,115960.0,115950.0,1.55919876]
[1757731308979,0.60500545,115960.0,115950.0,1.51919876]
[1757731309180,0.60500545,115960.0,115950.0,1.55919876]
[1757731310284,0.60500545,115960.0,115950.0,1.51919876]
[1757731310484,0.60500545,115960.0,115950.0,1.55919876]
[1757731310683,0.61350413,115960.0,115950.0,1.55919876]
[1757731313186,0.60500545,115960.0,115950.0,1.55919876]
[1757731313888,0.61343672,115960.0,115950.0,1.55919876]
[1757731315989,0.64447199,115960.0,115950.0,1.55919876]
[1757731320390,0.64447199,115960.0,115950.0,1.68805909]
[1757731320883,0.64447199,115960.0,115950.0,1.45612]
[1757731321084,0.64447199,115960.0,115950.0,1.68805909]
[1757731322486,0.63604072,115960.0,115950.0,1.68805909]
[1757731325491,0.64470187,115960.0,115950.0,1.68805909]
[1757731325994,0.6136666,115960.0,115950.0,1.68805909]
[1757731329001,0.6136666,115960.0,115950.0,1.64805909]
[1757731329189,0.6136666,115960.0,115950.0,1.68805909]
[1757731330094,0.60500545,115960.0,115950.0,1.68805909]
[1757731330291,0.61364326,115960.0,115950.0,1.68805909]
[1757731334400,0.61364326,115960.0,115950.0,1.64805909]
[1757731334599,0.61364326,115960.0,115950.0,1.68805909]
[1757731336597,0.60500545,115960.0,115950.0,1.68805909]
[1757731337702,0.61365363,115960.0,115950.0,1.68805909]
[1757731337903,0.60500545,115960.0,115950.0,1.68805909]
[1757731338504,0.60500545,115960.0,115950.0,1.45612]
[1757731338704,0.60500545,115960.0,115950.0,1.68805909]
[1757731341606,0.61368734,115960.0,115950.0,1.68805909]
[1757731344605,0.60500545,115960.0,115950.0,1.68805909]
[1757731345816,0.61381265,115960.0,115950.0,1.68805909]
[1757731348316,0.25301265,115960.0,115950.0,1.68805909]
[1757731348614,0.61381265,115960.0,115950.0,1.68805909]
[1757731349318,0.60500545,115960.0,115950.0,1.68805909]
[1757731351518,0.60500545,115960.0,115950.0,1.64805909]
[1757731351720,0.60500545,115960.0,115950.0,1.68805909]
[1757731352115,0.61379169,115960.0,115950.0,1.68805909]
[1757731352707,0.60500545,115960.0,115950.0,1.68805909]
[1757731363734,0.60500545,115960.0,115950.0,1.64805909]
[1757731364732,0.60500545,115960.0,115950.0,1.68805909]
[1757731365339,0.60514875,115960.0,115950.0,1.68805909]
[1757731366032,0.63618402,115960.0,115950.0,1.68805909]
[1757731369433,0.63618402,115960.0,115950.0,1.64805909]
[1757731369639,0.63618402,115960.0,115950.0,1.68805909]
[1757731376037,0.60514875,115960.0,115950.0,1.68805909]
[1757731378433,0.60514875,115960.0,115950.0,1.70581596]
[1757731378640,0.23141875,115960.0,115950.0,1.70581596]
[1757731382339,0.23141875,115960.0,115950.0,1.68002075]
[1757731386143,0.59221875,115960.0,115950.0,1.68002075]
[1757731395039,0.59221875,115960.0,115950.0,1.57694881]
[1757731396942,0.59221875,115960.0,115950.0,1.53694881]
[1757731397144,0.59221875,115960.0,115950.0,1.57694881]
[1757731398448,0.59221875,115960.0,115950.0,1.68002075]
[1757731399442,0.59221875,115960.0,115950.0,1.57694881]
[1757731399644,0.60589875,115960.0,115950.0,1.47387687]
[1757731399845,0.60589875,115960.0,115950.0,1.57694881]
[1757731402350,0.60589875,115960.0,115950.0,1.47387687]
[1757731402543,0.60589875,115960.0,115950.0,1.57694881]
[1757731406048,0.63693402,115960.0,115950.0,1.57694881]
[1757731411552,0.63693402,115960.0,115950.0,1.53694881]
[1757731411754,0.63693402,115960.0,115950.0,1.57694881]
[1757731414555,0.63693402,115960.0,115950.0,1.53694881]
[1757731414759,0.63693402,115960.0,115950.0,1.57694881]
[1757731414945,0.62325402,115960.0,115950.0,1.68002075]
[1757731416057,0.59221875,115960.0,115950.0,1.68002075]
[1757731416455,0.5922196,115960.0,115950.0,1.68002075]
[1757731425075,0.5922196,115960.0,115950.0,1.64002075]
[1757731425277,0.5922196,115960.0,115950.0,1.68002075]
[1757731427379,0.5922196,115960.0,115950.0,1.47387687]
[1757731427580,0.5922196,115960.0,115950.0,1.68002075]
[1757731429578,0.1640506,115960.0,115950.0,2.39389269]
[1757731429877,0.3608,115980.0,115960.0,0.0861938]
[1757731430082,0.39360028,115990.0,115970.0,1.13325582]
[1757731430276,0.39360028,115990.0,115980.0,0.10307194]
[1757731430477,0.39360028,115990.0,115980.0,0.77614388]
[1757731430776,0.39360028,115990.0,115980.0,0.81614388]
[1757731432181,0.39360028,115990.0,115980.0,0.81814388]
[1757731432376,0.03280028,115990.0,115980.0,0.81814388]
[1757731432777,0.03280028,115990.0,115980.0,0.82014388]
[1757731436480,0.03280028,115990.0,115980.0,0.614]
[1757731436681,0.03280028,115990.0,115980.0,0.82014388]
[1757731437582,0.03280028,115990.0,115980.0,0.78014388]
[1757731437790,0.03280028,115990.0,115980.0,1.60410388]
[1757731444394,0.03280028,115990.0,115980.0,1.62974234]
[1757731445691,0.04592085,115990.0,115980.0,1.62974234]
[1757731446192,0.01987028,115990.0,115980.0,1.62974234]
[1757731447495,0.01987028,115990.0,115980.0,0.84578234]
[1757731447797,0.01987028,115990.0,115980.0,1.62962234]
[1757731448696,0.01987028,115990.0,115980.0,0.84578234]
[1757731448900,0.01987028,115990.0,115980.0,1.62962234]
[1757731450496,0.04592533,115990.0,115980.0,1.62962234]
[1757731451103,0.04592533,115990.0,115980.0,1.55236156]
[1757731451397,0.04592533,115990.0,115980.0,1.62962234]
[1757731456496,0.04592533,115990.0,115980.0,1.62954234]
[1757731457295,0.04592533,115990.0,115980.0,0.84578234]
[1757731457793,0.05939533,115990.0,115980.0,1.62954234]
[1757731458099,0.0904306,115990.0,115980.0,1.62954234]
[1757731458400,0.0904306,115990.0,115980.0,0.84578234]
[1757731458603,0.0904306,115990.0,115980.0,0.614]
[1757731458902,0.0904306,115990.0,115980.0,1.62954234]
[1757731459503,0.0904306,115990.0,115980.0,0.84578234]
[1757731459996,0.0904306,115990.0,115980.0,1.62954234]
[1757731460395,0.1369835,115990.0,115980.0,0.84578234]
[1757731460590,0.1369835,115990.0,115980.0,1.62950234]
[1757731460788,0.1586635,115990.0,115980.0,0.84578234]
[1757731460993,0.1369835,115990.0,115980.0,1.62950234]
[1757731461194,0.1369835,115990.0,115980.0,0.84578234]
[1757731461696,0.1369835,115990.0,115980.0,1.62950234]
[1757731463204,0.0904306,115990.0,115980.0,1.62950234]
[1757731466004,0.05939533,115990.0,115980.0,1.62950234]
[1757731467205,0.03334028,115990.0,115980.0,1.62950234]
[1757731467508,0.05939068,115990.0,115980.0,1.62950234]
[1757731477217,0.52023146,115990.0,115980.0,1.62942234]
[1757731477516,0.44297068,115990.0,115980.0,1.25942234]
[1757731477812,0.52023146,115990.0,115980.0,0.39852156]
[1757731478214,0.52023146,115990.0,115980.0,1.18216156]
[1757731488021,0.44297068,115990.0,115980.0,1.18216156]
[1757731488223,0.52023146,115990.0,115980.0,1.18216156]
[1757731488723,0.52023146,115990.0,115980.0,1.14216156]
[1757731489421,0.44297068,115990.0,115980.0,1.14216156]
[1757731489622,0.44297068,115990.0,115980.0,1.18216156]
[1757731491523,0.52023146,115990.0,115980.0,1.18216156]
[1757731495725,0.44297068,115990.0,115980.0,1.10490078]
[1757731496127,0.47400595,115990.0,115980.0,1.10490078]
[1757731496422,0.44297068,115990.0,115980.0,1.10490078]
[1757731497524,0.44297068,115990.0,115980.0,1.06490078]
[1757731497828,0.44297068,115990.0,115980.0,1.10490078]
[1757731500827,0.44297068,115990.0,115980.0,0.32126078]
[1757731501026,0.87852751,115990.0,115980.0,0.004]
[1757731501331,0.95578829,115990.0,115980.0,0.004]
[1757731501522,1.00234119,115990.0,115980.0,0.78756]
[1757731501925,0.97130592,115990.0,115980.0,0.78756]
[1757731502124,1.00231087,115990.0,115980.0,0.78756]
[1757731502429,0.97130592,115990.0,115980.0,0.78756]
[1757731503232,1.00231012,115990.0,115980.0,0.78756]
[1757731504336,0.87359939,115990.0,115980.0,0.78756]
[1757731504633,0.84259519,115990.0,115980.0,0.78756]
[1757731506128,0.79604229,115990.0,115980.0,0.78756]
[1757731509441,0.77617201,115990.0,115980.0,0.78756]
[1757731510836,0.82267261,115990.0,115980.0,0.78756]
[1757731511042,0.77617201,115990.0,115980.0,0.78756]
[1757731512140,0.82267135,115990.0,115980.0,0.78756]
[1757731515839,0.86964135,115990.0,115980.0,0.78756]
[1757731516039,0.90063946,115990.0,115980.0,0.78756]
[1757731518738,0.86964135,115990.0,115980.0,0.78756]
[1757731529256,0.82314201,115990.0,115980.0,0.78756]
[1757731532759,0.88521255,115990.0,115980.0,0.78756]
[1757731536961,0.82314201,115990.0,115980.0,0.78756]
[1757731537166,0.88521255,115990.0,115980.0,0.78756]
[1757731538063,0.52441255,115990.0,115980.0,0.78756]
[1757731538366,1.24601255,115990.0,115980.0,0.78756]
[1757731539267,0.99601255,115990.0,115980.0,0.78756]
[1757731545073,0.27441255,115990.0,115980.0,0.78756]
[1757731545372,0.99601255,115990.0,115980.0,0.78756]
[1757731550677,0.93394201,115990.0,115980.0,0.78756]
[1757731555581,0.21234201,115990.0,115980.0,0.78756]
[1757731555781,0.93394201,115990.0,115980.0,0.78756]
[1757731556282,0.99602618,115990.0,115980.0,0.78756]
[1757731557680,0.98050467,115990.0,115980.0,0.78756]
[1757731557880,0.87743306,115990.0,115980.0,0.78756]
[1757731558077,0.98050467,115990.0,115980.0,0.78756]
[1757731559781,0.98050467,115990.0,115980.0,0.82756]
[1757731564389,1.10935121,115990.0,115980.0,0.82756]
[1757731564788,1.10935121,115990.0,115980.0,0.044]
[1757731565084,1.12487272,115990.0,115980.0,0.55028]
[1757731571695,0.89295457,115990.0,115980.0,0.55028]
[1757731571893,1.12487272,115990.0,115980.0,0.55028]
[1757731574798,1.12487272,115990.0,115980.0,0.51028]
[1757731575007,1.12487272,115990.0,115980.0,0.55028]
[1757731575608,1.12487272,115990.0,115980.0,0.51028]
[1757731576011,1.04756667,115990.0,115980.0,0.51028]
[1757731576611,1.04756667,115990.0,115980.0,0.55028]
[1757731577109,1.04756667,115990.0,115980.0,0.62758605]
[1757731578108,1.04756667,115990.0,115980.0,0.55028]
[1757731579408,1.04756667,115990.0,115980.0,0.51028]
[1757731579607,1.04756667,115990.0,115980.0,0.62758605]
[1757731579909,0.9854825,115990.0,115980.0,0.62758605]
[1757731580703,1.03202176,115990.0,115980.0,0.62758605]
[1757731581306,0.95471571,115990.0,115980.0,0.62758605]
[1757731582406,0.95471571,115990.0,115980.0,0.7048921]
[1757731582711,0.97026062,115990.0,115980.0,0.7048921]
[1757731582911,1.04756667,115990.0,115980.0,0.62758605]
[1757731584104,1.04756667,115990.0,115980.0,0.7048921]
[1757731586516,0.89295457,115990.0,115980.0,0.7048921]
[1757731586712,0.87741077,115990.0,115980.0,1.46219815]
[1757731586906,0.83911539,115990.0,115980.0,1.46219815]
[1757731587113,0.7946204,115990.0,115980.0,1.46219815]
[1757731590417,0.4338204,115990.0,115980.0,1.46219815]
[1757731592413,0.40777,115990.0,115980.0,1.46219815]
[1757731596112,0.43377152,115990.0,115980.0,1.46219815]
[1757731597111,0.43377152,115990.0,115980.0,1.47080963]
[1757731599318,0.43377152,115990.0,115980.0,1.22080963]
[1757731602715,0.43377152,115990.0,115980.0,0.98889148]
[1757731602920,0.43377152,115990.0,115980.0,1.22080963]
[1757731606117,0.40777,115990.0,115980.0,1.22080963]
[1757731608622,0.40777,115990.0,115980.0,0.98889148]
[1757731608815,0.40777,115990.0,115980.0,1.22080963]
[1757731615128,0.43386648,115990.0,115980.0,1.22080963]
[1757731617627,0.43386648,115990.0,115980.0,2.87644963]
[1757731622942,0.07306648,115990.0,115980.0,2.87644963]
[1757731624343,0.07306648,115990.0,115980.0,2.85055574]
[1757731625530,0.07306648,115990.0,115980.0,2.95356787]
[1757731631652,0.07306648,115990.0,115980.0,2.91356787]
[1757731633450,0.07306648,115990.0,115980.0,3.27436787]
[1757731635352,0.07306648,115990.0,115980.0,3.24165148]
[1757731635545,0.07306648,115990.0,115980.0,3.55068787]
[1757731636747,0.07306648,115990.0,115980.0,2.80808787]
[1757731636946,0.07306648,115990.0,115980.0,3.48767574]
[1757731637146,0.07306648,115990.0,115980.0,2.70507574]
[1757731637348,0.07306648,115990.0,115980.0,3.48767574]
[1757731642049,0.07306648,115990.0,115980.0,3.59068787]
[1757731646449,0.07306648,115990.0,115980.0,1.93504787]
[1757731649259,0.07306648,115990.0,115980.0,1.89504787]
[1757731649458,0.07306648,115990.0,115980.0,1.93504787]
[1757731651260,0.07306648,115990.0,115980.0,3.59064787]
[1757731654261,0.04697,115990.0,115980.0,3.59064787]
[1757731658262,0.07310799,115990.0,115980.0,3.59064787]
[1757731662064,0.07310799,115990.0,115980.0,3.59048787]
[1757731662261,0.08668799,115990.0,115980.0,3.59048787]
[1757731662966,0.08668799,115990.0,115980.0,3.48747574]
[1757731663868,0.08668799,115990.0,115980.0,3.59048787]
[1757731665972,0.08668799,115990.0,115980.0,3.59044787]
[1757731667071,0.08668799,115990.0,115980.0,3.55044787]
[1757731667272,0.08668799,115990.0,115980.0,3.59044787]
[1757731671975,0.08668799,115990.0,115980.0,3.59040787]
[1757731672675,0.06055,115990.0,115980.0,3.59040787]
[1757731677185,0.06055,115990.0,115980.0,3.55040787]
[1757731677381,0.06055,115990.0,115980.0,3.59040787]
[1757731680687,0.06055,115990.0,115980.0,3.55040787]
[1757731680882,0.06055,115990.0,115980.0,3.59040787]
[1757731683593,0.06055,115990.0,115980.0,3.55040787]
[1757731684591,0.06055,115990.0,115980.0,3.59040787]
[1757731685692,0.06055,115990.0,115980.0,3.55040787]
[1757731685894,0.06055,115990.0,115980.0,3.59040787]
[1757731686194,0.08671338,115990.0,115980.0,3.59040787]
[1757731686493,0.08671338,115990.0,115980.0,3.51314272]
[1757731689692,0.42602932,116010.0,115980.0,3.84932282]
[1757731689891,0.41798756,116010.0,116000.0,0.23177124]
[1757731690098,0.02616257,116010.0,116000.0,1.59397124]
[1757731690596,0.02616257,116010.0,116000.0,1.63397124]
[1757731690793,0.02616257,116010.0,116000.0,1.59397124]
[1757731692694,0.02616257,116010.0,116000.0,1.3622]
[1757731692898,0.02716257,116010.0,116000.0,1.59393124]
[1757731693102,0.02716257,116010.0,116000.0,0.81177124]
[1757731693393,0.02716257,116010.0,116000.0,1.59393124]
[1757731693600,0.02616257,116010.0,116000.0,1.59393124]
[1757731693790,0.02716257,116010.0,116000.0,0.81277124]
[1757731694199,0.02716257,116010.0,116000.0,1.59493124]
[1757731695500,0.02616257,116010.0,116000.0,1.59693124]
[1757731695701,0.37466,116020.0,116000.0,1.59793124]
[1757731695898,0.3974,116020.0,116000.0,1.36616]
[1757731696098,0.3974,116020.0,116010.0,0.23177124]
[1757731696402,0.3974,116020.0,116010.0,0.80177124]
[1757731696602,0.3974,116020.0,116010.0,0.84177124]
[1757731697497,0.3974,116020.0,116010.0,0.8588906]
[1757731698906,0.3974,116020.0,116010.0,0.8598906]
[1757731700904,0.80191416,116020.0,116010.0,1.07745644]
[1757731701204,0.80191416,116020.0,116010.0,0.01811936]
[1757731701205,0.87917124,116020.0,116010.0,0.01811936]
[1757731701400,0.80191416,116020.0,116010.0,0.80019936]
[1757731701809,0.82807124,116020.0,116010.0,0.80019936]
[1757731702203,0.85909623,116020.0,116010.0,0.80019936]
[1757731703504,0.85909623,116020.0,116010.0,0.87745644]
[1757731704405,0.98289368,116020.0,116010.0,0.78308]
[1757731704707,0.98289368,116020.0,116010.0,0.001]
[1757731704909,0.95186869,116020.0,116010.0,0.6428]
[1757731705504,0.01329,116010.0,115990.0,0.07725708]
[1757731705809,0.47381708,116000.0,115990.0,0.37725708]
[1757731706008,0.49997416,116000.0,115990.0,1.15933708]
[1757731706197,0.52004159,116000.0,115990.0,0.26]
[1757731706402,0.91181008,116000.0,115990.0,0.26]
[1757731706601,1.16181008,116000.0,115990.0,0.26]
[1757731706808,1.23906716,116000.0,115990.0,1.11933708]
[1757731708112,1.31632424,116000.0,115980.0,1.73285708]
[1757731708304,0.45134708,115990.0,115980.0,2.05285708]
[1757731708505,0.47750416,115990.0,115980.0,2.83493708]
[1757731709303,0.47750416,115990.0,115980.0,2.83593708]
[1757731709605,0.47750416,115990.0,115980.0,2.83597708]
[1757731709808,0.47750416,115990.0,115980.0,2.83697708]
[1757731710009,0.55476124,115990.0,115980.0,2.83897708]
[1757731710311,0.54722693,115990.0,115980.0,2.83897708]
[1757731711209,0.95174109,115990.0,115980.0,1.9796]
[1757731711514,0.87448401,115990.0,115980.0,2.51897708]
[1757731712514,0.79722693,115990.0,115980.0,2.51897708]
[1757731712906,0.87448401,115990.0,115980.0,2.51897708]
[1757731719422,0.62448401,115990.0,115980.0,2.51897708]
[1757731720221,0.98528401,115990.0,115980.0,2.51897708]
[1757731725628,0.83076985,115990.0,115980.0,2.51897708]
[1757731725924,0.98528401,115990.0,115980.0,2.51897708]
[1757731726313,1.06279287,115990.0,115980.0,2.51897708]
[1757731727426,1.03182438,115990.0,115980.0,2.51897708]
[1757731728827,1.03182438,115990.0,115980.0,2.44172]
[1757731729028,1.03182438,115990.0,115980.0,2.51897708]
[1757731729730,1.03182438,115990.0,115980.0,2.44172]
[1757731730232,0.98528401,115990.0,115980.0,2.44172]
[1757731731029,1.03169318,115990.0,115980.0,2.44172]
[1757731731221,0.98528401,115990.0,115980.0,2.44172]
[1757731731630,1.00762401,115990.0,115980.0,0.78612]
[1757731732232,1.06970818,115990.0,115980.0,0.78612]
[1757731733733,0.9924511,115990.0,115980.0,0.78612]
[1757731742946,1.06970818,115990.0,115980.0,0.78612]
[1757731743653,0.91519402,115990.0,115980.0,0.78612]
[1757731743852,1.06970818,115990.0,115980.0,0.78612]
[1757731744351,1.06970818,115990.0,115980.0,0.86337708]
[1757731748355,1.0182559,115990.0,115980.0,0.78612]
[1757731750854,0.91519402,115990.0,115980.0,0.78612]
[1757731751053,1.0182559,115990.0,115980.0,0.78612]
[1757731755258,0.95617173,115990.0,115980.0,0.78612]
[1757731756358,1.00273656,115990.0,115980.0,0.78612]
[1757731757362,0.89967468,115990.0,115980.0,0.78612]
[1757731757558,1.00273656,115990.0,115980.0,0.78612]
[1757731758161,1.00273656,115990.0,115980.0,0.78616]
[1757731758463,1.00273656,115990.0,115980.0,0.004]
[1757731758762,1.00273656,115990.0,115980.0,0.78616]
[1757731765755,1.00273656,115990.0,115980.0,0.044]
[1757731765955,1.00273656,115990.0,115980.0,0.004]
[1757731766159,1.37131778,115990.0,115980.0,0.78612]
[1757731767266,1.37128237,115990.0,115980.0,0.78612]
[1757731767768,1.37128237,115990.0,115980.0,0.004]
[1757731767963,1.37128237,115990.0,115960.0,0.87380001]
[1757731768266,0.93862843,115970.0,115960.0,0.87380001]
[1757731768463,0.93791936,115970.0,115960.0,1.65592001]
[1757731768866,0.95343267,115970.0,115960.0,1.65592001]
[1757731769064,0.95343267,115970.0,115960.0,1.65792001]
[1757731769266,0.95343267,115970.0,115960.0,1.65992001]
[1757731769660,0.96221186,115970.0,115960.0,1.65992001]
[1757731769861,0.96221186,115970.0,115960.0,1.65792001]
[1757731770065,0.96221186,115970.0,115960.0,1.65992001]
[1757731770471,1.31527374,115970.0,115960.0,0.004]
[1757731770668,0.01363,115930.0,115920.0,1.77638614]
[1757731770865,0.37443,115930.0,115920.0,2.66646614]
[1757731771065,0.47113138,115930.0,115920.0,2.66646614]
[1757731771671,0.47113138,115930.0,115920.0,2.76952802]
[1757731772170,0.47213138,115930.0,115920.0,2.77352802]
[1757731772669,0.47213138,115930.0,115920.0,2.77852802]
[1757731773069,0.47113138,115930.0,115920.0,2.77652802]
[1757731773266,0.47113138,115930.0,115920.0,2.77252802]
[1757731773464,0.44500971,115930.0,115920.0,2.77252802]
[1757731774072,0.47104821,115930.0,115920.0,2.77252802]
[1757731774370,0.44500971,115930.0,115920.0,2.77252802]
[1757731776268,0.47103053,115930.0,115920.0,2.77252802]
[1757731783978,0.47103053,115930.0,115920.0,2.56640426]
[1757731784471,0.47103053,115930.0,115920.0,2.77252802]
[1757731786678,0.47103053,115930.0,115920.0,2.56640426]
[1757731786975,0.47103053,115930.0,115920.0,2.77252802]
[1757731788778,0.47103053,115930.0,115920.0,2.56640426]
[1757731788972,0.47103053,115930.0,115920.0,2.66946614]
[1757731789476,0.47103053,115930.0,115920.0,2.77252802]
[1757731790179,0.47103053,115930.0,115920.0,2.56640426]
[1757731790381,0.47103053,115930.0,115920.0,2.77252802]
[1757731795286,0.50201994,115930.0,115920.0,2.77252802]
[1757731797383,0.75201994,115930.0,115920.0,2.26632426]
[1757731797583,0.75201994,115930.0,115920.0,3.15170614]
[1757731797778,0.90156594,115930.0,115920.0,3.15170614]
[1757731797982,0.85508182,115930.0,115920.0,3.15170614]
[1757731798380,0.90156594,115930.0,115920.0,3.15170614]
[1757731799285,0.87057653,115930.0,115920.0,3.15170614]
[1757731799586,0.90159935,115930.0,115920.0,3.15170614]
[1757731800285,0.87057653,115930.0,115920.0,3.15170614]
[1757731800886,0.76751465,115930.0,115920.0,3.15170614]
[1757731801087,0.75207181,115930.0,115920.0,3.15170614]
[1757731802076,0.79855593,115930.0,115920.0,3.15170614]
[1757731802280,0.75207181,115930.0,115920.0,3.15170614]
[1757731802888,0.79855593,115930.0,115920.0,3.15170614]
[1757731804291,0.75207181,115930.0,115920.0,3.15170614]
[1757731804890,0.79855593,115930.0,115920.0,3.15170614]
[1757731805090,0.75207181,115930.0,115920.0,3.15170614]
[1757731806191,0.75207181,115930.0,115920.0,3.04864426]
[1757731806381,0.75207181,115930.0,115920.0,3.15170614]
[1757731806580,0.76751465,115930.0,115920.0,2.36938614]
[1757731806790,0.72103053,115930.0,115920.0,3.15170614]
[1757731806992,0.82409241,115930.0,115920.0,3.15170614]
[1757731807488,0.87064588,115930.0,115920.0,3.15170614]
[1757731809394,0.87064588,115930.0,115920.0,3.04864426]
[1757731809691,0.87064588,115930.0,115920.0,3.15170614]
[1757731810087,0.62064588,115930.0,115920.0,3.04864426]
[1757731810283,0.62074562,115930.0,115920.0,3.15170614]
[1757731810493,0.67242266,115930.0,115920.0,3.12601372]
[1757731811294,0.67242266,115930.0,115920.0,1.86369372]
[1757731811493,0.68795336,115930.0,115920.0,2.57601372]
[1757731812188,0.62586919,115930.0,115920.0,2.57601372]
[1757731814096,0.67239599,115930.0,115920.0,2.57601372]
[1757731814593,0.69564599,115930.0,115920.0,0.92001372]
[1757731816196,0.71120336,115930.0,115920.0,0.92001372]
[1757731819299,0.64911919,115930.0,115920.0,0.92001372]
[1757731820301,0.6956331,115930.0,115920.0,0.92001372]
[1757731823200,0.6956331,115930.0,115920.0,0.84264426]
[1757731823703,0.6956331,115930.0,115920.0,0.92001372]
[1757731825801,1.08744087,115930.0,115920.0,0.92001372]
[1757731826302,0.88618804,115930.0,115920.0,0.92001372]
[1757731826611,0.9635575,115930.0,115920.0,0.92001372]
[1757731827708,0.9635575,115930.0,115920.0,0.90268946]
[1757731827901,1.04092696,115930.0,115920.0,0.90268946]
[1757731834504,1.08744087,115930.0,115920.0,0.90268946]
[1757731835011,1.08744087,115930.0,115920.0,0.90264946]
[1757731835416,1.08744087,115930.0,115920.0,0.12036946]
[1757731835616,1.08744087,115930.0,115920.0,0.82528]
[1757731835910,1.08744087,115930.0,115920.0,0.90264946]
[1757731836809,1.04092696,115930.0,115920.0,0.90264946]
[1757731839512,1.04092696,115930.0,115920.0,0.82528]
[1757731840013,1.04092696,115930.0,115920.0,0.90264946]
[1757731841213,0.88618804,115930.0,115920.0,0.90264946]
[1757731841516,1.04092696,115930.0,115920.0,0.90264946]
[1757731843613,1.11829642,115930.0,115920.0,0.043]
[1757731843915,1.11829642,115930.0,115920.0,0.82524]
[1757731844117,1.04092696,115930.0,115920.0,0.82524]
[1757731846216,1.11829642,115930.0,115920.0,0.82524]
[1757731848516,1.16481033,115930.0,115920.0,0.82524]
[1757731848731,1.16481033,115930.0,115920.0,0.043]
[1757731849022,1.11829642,115930.0,115920.0,0.82524]
[1757731852723,1.11829642,115930.0,115920.0,0.8252]
[1757731856021,1.04092696,115930.0,115920.0,0.90256946]
[1757731856321,1.08744087,115930.0,115920.0,0.90256946]
[1757731859325,1.0564331,115930.0,115920.0,0.90256946]
[1757731859524,1.0564331,115930.0,115920.0,0.8252]
[1757731861529,1.13380256,115930.0,115920.0,0.8252]
[1757731862126,1.13380256,115930.0,115920.0,0.90256946]
[1757731865537,1.13380256,115930.0,115920.0,0.8252]
[1757731865734,1.13380256,115930.0,115920.0,0.90256946]
[1757731866234,1.14937282,115930.0,115920.0,0.90256946]
[1757731872339,1.02042548,115930.0,115920.0,0.8252]
[1757731873041,0.95834131,115930.0,115920.0,0.8252]
[1757731876348,1.00491622,115930.0,115920.0,0.8252]
[1757731877947,0.28331622,115930.0,115920.0,0.8252]
[1757731878148,1.00491622,115930.0,115920.0,0.8252]
[1757731878649,1.03596646,115930.0,115920.0,0.8252]
[1757731879651,1.00491622,115930.0,115920.0,0.8252]
[1757731880545,0.98938933,115930.0,115920.0,0.92836104]
[1757731880747,0.98938933,115930.0,115920.0,1.22152208]
[1757731880748,0.90955414,115930.0,115920.0,1.22152208]
[1757731880947,0.90955414,115930.0,115920.0,1.51152208]
[1757731880948,0.86297923,115930.0,115920.0,1.51152208]
[1757731887254,0.83193027,115930.0,115920.0,1.51152208]
[1757731890057,0.47113027,115930.0,115920.0,1.51152208]
[1757731892261,0.47113027,115930.0,115920.0,1.28152208]
[1757731894161,0.47113027,115930.0,115920.0,1.48152208]
[1757731895662,0.45750027,115930.0,115920.0,1.84152208]
[1757731896258,0.09670027,115930.0,115920.0,1.84152208]
[1757731899370,0.09670027,115930.0,115920.0,1.59152208]
[1757731902572,0.07057971,115930.0,115920.0,1.59152208]
[1757731902777,0.37443,115940.0,115920.0,1.59152208]
[1757731902978,0.39742,115940.0,115930.0,0.10316104]
[1757731903279,0.39742,115940.0,115930.0,0.34316104]
[1757731903471,0.39742,115940.0,115930.0,0.38316104]
[1757731904869,0.39742,115940.0,115930.0,0.38416104]
[1757731905076,0.42303584,115940.0,115930.0,0.38416104]
[1757731907676,0.49111295,115940.0,115930.0,0.38416104]
[1757731908178,0.49111295,115940.0,115930.0,1.16604104]
[1757731908378,0.49111295,115940.0,115930.0,1.16600104]
[1757731909476,0.52209725,115940.0,115930.0,1.16600104]
[1757731910480,0.52209725,115940.0,115930.0,0.38416104]
[1757731910777,0.52209725,115940.0,115930.0,1.16600104]
[1757731911780,0.62525829,115940.0,115930.0,1.16600104]
[1757731912473,0.52209725,115940.0,115930.0,1.16600104]
[1757731915086,0.52209725,115940.0,115930.0,1.12600104]
[1757731915279,0.52209725,115940.0,115930.0,1.16600104]
[1757731916286,0.49111295,115940.0,115930.0,1.16600104]
[1757731917585,0.49111295,115940.0,115930.0,1.12600104]
[1757731917791,0.49111295,115940.0,115930.0,1.16600104]
[1757731920690,0.52209725,115940.0,115930.0,1.16600104]
[1757731920891,0.49111295,115940.0,115930.0,1.16600104]
[1757731923097,0.49111295,115940.0,115930.0,1.12600104]
[1757731923295,0.49111295,115940.0,115930.0,1.16600104]
[1757731924295,0.52209725,115940.0,115930.0,1.16600104]
[1757731926394,0.52209725,115940.0,115930.0,1.16592104]
[1757731926801,0.52209725,115940.0,115930.0,0.38416104]
[1757731927097,0.52209725,115940.0,115930.0,1.16592104]
[1757731928999,0.52209725,115940.0,115930.0,1.12592104]
[1757731929198,0.62525829,115940.0,115930.0,1.16592104]
[1757731932398,0.59944631,115940.0,115930.0,1.21745812]
[1757731935597,0.59944631,115940.0,115930.0,1.06276]
[1757731935798,0.59944631,115940.0,115930.0,1.21745812]
[1757731942700,0.59944631,115940.0,115930.0,1.17745812]
[1757731943609,0.59944631,115940.0,115930.0,1.21745812]
[1757731946413,0.59944631,115940.0,115930.0,1.17745812]
[1757731946710,0.59944631,115940.0,115930.0,1.21745812]
[1757731948211,0.59944631,115940.0,115930.0,0.43569812]
[1757731948516,0.59944631,115940.0,115930.0,1.21741812]
[1757731949517,0.59944631,115940.0,115930.0,0.19569812]
[1757731949720,0.67679537,115940.0,115930.0,0.90006906]
[1757731952418,0.67679537,115940.0,115930.0,0.86006906]
[1757731952620,0.67679537,115940.0,115930.0,0.90006906]
[1757731953223,0.67679537,115940.0,115930.0,0.82272]
[1757731953519,0.67679537,115940.0,115930.0,0.90006906]
[1757731954318,0.31599537,115940.0,115930.0,0.90006906]
[1757731954519,0.67679537,115940.0,115930.0,0.90006906]
[1757731956324,0.72327182,115940.0,115930.0,0.90006906]
[1757731957828,0.69228752,115940.0,115930.0,0.90006906]
[1757731958929,0.69228752,115940.0,115930.0,0.86006906]
[1757731959123,0.69228752,115940.0,115930.0,0.90006906]
[1757731960127,1.05308752,115940.0,115930.0,0.90006906]
[1757731961730,1.05308752,115940.0,115930.0,1.10006906]